Cogmind - Beta 10 --- EXPLORER MODE // 2020.09.16 @ 12:04:03 Player: GamerShanksi Result: Destroyed by P-60 Hacker with Shock Rifle Performance ------------- Evolutions (3) 1500 Regions Visited (6) 1200 Robots Destroyed (47) 235 Value Destroyed (1735) 1735 Prototype IDs (7) 140 Alien Tech Used (0) 0 Bonus (339) 339 TOTAL SCORE: 5149 Bonus ------- Follower Combat Kills 39 Aligned with FarCom 300 Cogmind --------- Core Integrity 0/700 Matter 285/300 Energy 100/100 System Corruption 4% Temperature Cool (9) Movement Treading (145) Location -7/Factory Parts ------- > --- POWER (2) -------- (None) > --- PROPULSION (2) --- Advanced Treads > --- UTILITY (8) ------ (None) > --- WEAPON (2) ------- Improved EM Pulse Cannon > --- INVENTORY (4) ---- Kinecellerator Peak State ------------ > --- POWER ------------ Improved Ion Engine Light Nuclear Core > --- PROPULSION ------- Carbon-fiber Leg Carbon-fiber Leg > --- UTILITY ---------- Structural Scanner Improved Signal Interpreter Advanced Targeting Computer Armor Integrity Analyzer Particle Charger Core Shielding > --- WEAPON ----------- Improved Medium Laser Guided Plasma Cannon > --- INVENTORY -------- Mining Laser [Rating: 34] Favorites ----------- Power Ion Engine Engine Ion Engine Power Core Light Nuclear Core Propulsion Aluminum Leg Treads Light Treads Leg Aluminum Leg Wheel Compact Wheel Utility Core Shielding Device Structural Scanner Processor Armor Integrity Analyzer Protection Core Shielding Weapon Light Assault Rifle Energy Gun Particle Gun Energy Cannon Guided Plasma Cannon Ballistic Gun Light Assault Rifle Launcher Grenade Launcher Special Weapon Mining Laser Impact Weapon Maul Slashing Weapon Chainsword Build | -11 -10 -10 -10 -9 -8 -7 ------- Run | Scr Mat Min Exi Min Mat Fac Slots Evolved 7 | . 1 . . . 4 2 Power 1 | . . . . . 1 . Propulsion . | . . . . . . . Utility 6 | . 1 . . . 3 2 Weapon . | . . . . . . . Parts Attached 49 | 7 1 . 4 1 24 12 Power 9 | 1 . . 1 1 3 3 Engine 7 | 1 . . 1 1 2 2 Core 2 | . . . . . 1 1 Reactor . | . . . . . . . Propulsion 10 | 2 . . . . 6 2 Treads 2 | . . . . . 1 1 Leg 7 | 2 . . . . 4 1 Wheel 1 | . . . . . 1 . Hover . | . . . . . . . Flight . | . . . . . . . Utility 16 | 2 1 . 2 . 8 3 Device 9 | 1 1 . 1 . 3 3 Storage . | . . . . . . . Processor 5 | . . . 1 . 4 . Hackware . | . . . . . . . Protection 2 | 1 . . . . 1 . Artifact . | . . . . . . . Weapon 14 | 2 . . 1 . 7 4 Energy Gun 3 | . . . . . 3 . Energy Cannon 3 | . . . 1 . 1 1 Ballistic Gun 3 | 2 . . . . 1 . Ballistic Cannon . | . . . . . . . Launcher 1 | . . . . . 1 . Special Weapon 1 | . . . . . . 1 Impact Weapon 1 | . . . . . 1 . Slashing Weapon 2 | . . . . . . 2 Piercing Weapon . | . . . . . . . Special Melee Weapon . | . . . . . . . Unidentified Prototypes 5 | . . . 3 . 2 . Parts Lost 27 | . . . . . 10 17 Power 4 | . . . . . 2 2 Propulsion 5 | . . . . . 2 3 Utility 9 | . . . . . 2 7 Weapon 9 | . . . . . 4 5 Highest Loss Streak 8 | . . . . . 6 8 Average Slot Usage (%) 85 | . 98 100 99 100 82 49 Engine 10 | . 12 12 12 12 10 7 Leg 16 | . 25 25 25 25 9 7 Device 15 | . 23 25 14 12 12 7 Processor 10 | . . . 9 12 19 8 Protection 10 | . 12 12 12 12 9 6 Energy Gun 1 | . . . . . 1 5 Energy Cannon 4 | . . . 9 12 7 . Ballistic Gun 10 | . 25 25 14 12 2 . Launcher 1 | . . . . . 3 . Naked Turns 113 | . . . . . . 113 Heaviest Build 38 | 10 11 11 19 20 33 38 Greatest Support 30 | 20 20 20 20 20 30 22 Greatest Overweight (x) 8 | 2 . . . . 5 8 Average Overweight (x) . | . . . . . . . Largest Inventory Capacity 4 | 4 4 4 4 4 4 4 Average Capacity 4 | 4 4 4 4 4 4 4 Most Carried 4 | 2 1 . 2 4 4 4 Average Carried 1 | . . . . 1 2 2 Final Capacity 4 | 4 4 4 4 4 4 4 Final Carried 4 | . . . 1 3 4 1 Class Distribution -------------------- 98% | Hacker-Mutant Dominant Class ---------------- Hacker-Mutant | -10/Materials Hacker-Mutant | -10/Mines Hacker-Mutant | -10/Exiles Hacker-Mutant | -9/Mines Hacker-Mutant | -8/Materials Hacker-Mutant | -7/Factory Resources | -11 -10 -10 -10 -9 -8 -7 ----------- Run | Scr Mat Min Exi Min Mat Fac Matter Collected 850 | 64 135 141 . 50 332 128 Remotely . | . . . . . . . Salvage Created 1758 | . 185 21 . . 1292 260 Parts 98 | . 12 4 . . 71 11 Haulers Intercepted . | . . . . . . . Recyclers Shooed 1 | . . . . . 1 . Parts Field Recycled . | . . . . . . . Retrieved Matter . | . . . . . . . Parts Self-Destructed . | . . . . . . . Prevented . | . . . . . . . Kills | -11 -10 -10 -10 -9 -8 -7 ------- Run | Scr Mat Min Exi Min Mat Fac Combat Hostiles Destroyed 38 | . 4 . . . 30 4 Melee 1 | . . . . . . 1 Guns 9 | . 4 . . . 2 3 Cannons 20 | . . . . . 20 . AOE 6 | . . . . . 6 . Classes Destroyed 10 | . 1 1 . . 7 1 Worker 1 | . . . . . 1 . Builder 3 | . . 1 . . 2 . Mechanic 1 | . . . . . 1 . Watcher 4 | . . . . . 4 . Swarmer 6 | . . . . . 6 . Grunt 19 | . 4 . . . 13 2 Brawler 1 | . . . . . . 1 Duelist 1 | . . . . . 1 . Sentry 9 | . . . . . 8 1 Hunter 2 | . . . . . 2 . Best Kill Streak 10 | . 2 1 . . 10 3 Combat Bots Only 5 | . 2 . . . 5 3 Max Kills in Single Turn 3 | . 1 1 . . 3 1 Gunslinging . | . . . . . . . Exploded 2 | . . . . . 2 . Melee 1 | . . . . . . 1 Uniques/NPCs Destroyed . | . . . . . . . Combat | -11 -10 -10 -10 -9 -8 -7 -------- Run | Scr Mat Min Exi Min Mat Fac Damage Taken 3375 | . 189 . . 24 1361 1801 Core 945 | . 8 . . 7 222 708 Absorbed by Shields 15 | . . . . . . 15 Core Remaining (%) 84 | 100 . . . 94 59 . Volleys Fired 112 | . 14 1 . 1 81 15 Largest 2 | . 2 2 . 1 2 2 Hottest 128 | . 40 40 . 120 120 128 Shots Fired 155 | . 28 2 . 1 96 28 Gun 80 | . 28 2 . . 24 26 Cannon 61 | . . . . 1 59 1 Launcher 13 | . . . . . 13 . Special 1 | . . . . . . 1 Kinetic 45 | . 28 2 . . 15 . Thermal 96 | . . . . 1 68 27 Explosive 13 | . . . . . 13 . Electromagnetic 1 | . . . . . . 1 Robot Hit Streak 58 | . 23 . . 2 58 28 Robot Miss Streak 1 | . 1 . . . 1 1 Penetration Max . | . . . . . . . Secondary Targets 1 | . 1 . . . . . Max Gunslinging Chain 1 | . 1 . . . . . Shots Hit Robots 152 | . 24 . . 1 91 36 Core Hits 77 | . 9 2 . . 53 13 Critical Hits . | . . . . . . . Critical Kills . | . . . . . . . Critical Parts Destroyed . | . . . . . . . Melee Attacks 11 | . . . . . . 11 Impact . | . . . . . . . Slashing 11 | . . . . . . 11 Piercing . | . . . . . . . Sneak Attacks 1 | . . . . . . 1 Combat Hostiles . | . . . . . . . Follow-up Attacks 1 | . . . . . . 1 Damage Inflicted 4734 | . 259 21 . 37 3594 823 Guns 932 | . 259 21 . . 297 355 Cannons 2060 | . . . . 37 2017 6 Explosions 1280 | . . . . . 1280 . Melee 417 | . . . . . . 417 Ramming 45 | . . . . . . 45 Kinetic 437 | . 259 21 . . 157 . Thermal 2549 | . . . . 37 2157 355 Explosive 1063 | . . . . . 1063 . Electromagnetic 223 | . . . . . 217 6 Impact . | . . . . . . . Slashing 417 | . . . . . . 417 Piercing . | . . . . . . . Highest Corruption 4 | . . . . . 1 4 Average Corruption 1 | . . . . . 1 2 Corruption Purged . | . . . . . . . Effects 8 | . . . . . 7 1 Message Errors 2 | . . . . . 1 1 Energy Discharges 3 | . . . . . 3 . Data Loss (minor) 1 | . . . . . 1 . Targeting Errors 2 | . . . . . 2 . Overload Shots . | . . . . . . . Overflow Damage 294 | . . . . 16 192 86 Projectiles 118 | . . . . 16 102 . Explosions 90 | . . . . . 90 . Melee 86 | . . . . . . 86 Knockbacks . | . . . . . . . Impact . | . . . . . . . Kinetic . | . . . . . . . Secondary . | . . . . . . . Self-Inflicted Damage 131 | . . . . . 122 9 Shots 7 | . . . . . 7 . Rammed 13 | . . . . . . 13 Targets Rammed 23 | . . . . . . 23 Kicked 10 | . . . . . . 10 Crushed . | . . . . . . . Highest Temperature 602 | . 18 . . 82 602 327 Average Temperature 166 | . 9 . . 45 184 143 Received Heat Transfer 2037 | . 171 . . . 684 1182 Effects 19 | . . . . . 18 1 Shutdowns 7 | . . . . . 7 . Energy Bleed 2 | . . . . . 2 . Interference 4 | . . . . . 4 . Matter Decay 2 | . . . . . 2 . Short Circuit 3 | . . . . . 2 1 Damage (minor) 1 | . . . . . 1 . Siege Activations . | . . . . . . . Robots Corrupted . | . . . . . . . Combat Hostiles . | . . . . . . . Parts Fried . | . . . . . . . Impact Corruptions . | . . . . . . . Robots Melted 2 | . . . . . 2 . Combat Hostiles 2 | . . . . . 2 . Parts Melted 13 | . . . . . 12 1 Heat Transferred 5277 | . . . . 80 4346 851 Parts Sabotaged . | . . . . . . . Parts Stolen . | . . . . . . . Parts Stripped . | . . . . . . . Power Chain Reactions . | . . . . . . . Missiles Intercepted . | . . . . . . . Alert | -11 -10 -10 -10 -9 -8 -7 ------- Run | Scr Mat Min Exi Min Mat Fac Peak Influence 345 | . 115 34 . 20 345 114 Initial 31 | . . 31 . . 5 19 Average 69 | . 50 14 . 2 123 39 Maximum Alert Level 1 | . . . . . 1 . Low Security (%) 88 | 100 100 100 . 100 74 100 Level 1 11 | . . . . . 25 . Level 2 . | . . . . . . . Level 3 . | . . . . . . . Level 4 . | . . . . . . . Level 5 . | . . . . . . . High Security . | . . . . . . . Max Security . | . . . . . . . Squads Dispatched 5 | . . . . . 4 1 Investigation 2 | . . . . . 2 . Extermination 1 | . . . . . . 1 Reinforcement 2 | . . . . . 2 . Assault . | . . . . . . . Garrison . | . . . . . . . Intercept . | . . . . . . . Construction Impeded 1 | . . . . . 1 . Haulers Reinforced . | . . . . . . . Stealth | -11 -10 -10 -10 -9 -8 -7 --------- Run | Scr Mat Min Exi Min Mat Fac Distress Signals 6 | . 1 . . . 5 . Communications Jammed . | . . . . . . . Distress Signals . | . . . . . . . Times Spotted 73 | . 7 . . 2 38 26 Peak Tracking Total 8 | . 3 . . 1 7 8 Tactical Retreats 9 | . 1 . . . 1 7 Traps | -11 -10 -10 -10 -9 -8 -7 ------- Run | Scr Mat Min Exi Min Mat Fac Traps Triggered 1 | . . . . . 1 . Indirectly . | . . . . . . . Trap Hack Attempts . | . . . . . . . Triggered . | . . . . . . . Disarmed . | . . . . . . . Reprogrammed . | . . . . . . . Reused . | . . . . . . . Traps Extracted . | . . . . . . . Installed . | . . . . . . . Triggered . | . . . . . . . Machines | -11 -10 -10 -10 -9 -8 -7 ---------- Run | Scr Mat Min Exi Min Mat Fac Machines Disabled 6 | . . . . . 6 . Max in Single Turn 2 | . . . . . 2 . Machines Sabotaged . | . . . . . . . Garrisons Compromised . | . . . . . . . Overloaded Fab Kills . | . . . . . . . Fab Network Shutdowns . | . . . . . . . Hacking | -11 -10 -10 -10 -9 -8 -7 --------- Run | Scr Mat Min Exi Min Mat Fac Machines Accessed 9 | . . 1 2 . 4 2 Terminals 4 | . . 1 . . 3 . Fabricators 1 | . . . . . . 1 Repair Stations . | . . . . . . . Recycling Units 1 | . . . . . . 1 Scanalyzers 1 | . . . . . 1 . Garrison Access . | . . . . . . . Total Hacks 26 | . . 2 7 . 14 3 Successful 25 | . . 2 7 . 13 3 Failed 1 | . . . . . 1 . Catastrophic . | . . . . . . . Database Lockouts . | . . . . . . . Manual 1 | . . . 1 . . . Terminals 11 | . . 2 . . 9 . Fabricators 2 | . . . . . . 2 Repair Stations . | . . . . . . . Recycling Units 1 | . . . . . . 1 Scanalyzers 5 | . . . . . 5 . Garrison Access . | . . . . . . . Terminal Hacks 17 | . . 2 7 . 8 . Record 13 | . . 1 7 . 5 . Prototype ID Bank 1 | . . . . . 1 . Dispatch Records 1 | . . . . . 1 . Maintenance Status 1 | . . . . . 1 . Zone Layout 1 | . . 1 . . . . Fabricator Hacks 2 | . . . . . . 2 Load Schematic 1 | . . . . . . 1 Build 1 | . . . . . . 1 Repair Station Hacks . | . . . . . . . Recycling Unit Hacks 1 | . . . . . . 1 Process 1 | . . . . . . 1 Scanalyzer 5 | . . . . . 5 . Insert Component 3 | . . . . . 3 . Analyze 2 | . . . . . 2 . Garrison Access Hacks . | . . . . . . . Unauthorized Hacks . | . . . . . . . Terminals . | . . . . . . . Fabricators . | . . . . . . . Repair Stations . | . . . . . . . Recycling Units . | . . . . . . . Scanalyzers . | . . . . . . . Garrison Access . | . . . . . . . Data Cores Recovered . | . . . . . . . Used . | . . . . . . . Hacking Detections 4 | . . . . . 3 1 Full Trace Events 2 | . . . . . 2 . Feedback Events . | . . . . . . . Feedback Blocked . | . . . . . . . Robot Schematics Acquired . | . . . . . . . Robots Built . | . . . . . . . Matter . | . . . . . . . Time . | . . . . . . . Total Robot Build Rating . | . . . . . . . Part Schematics Acquired 2 | . . . . . 2 . Parts Built 2 | . . . . . . 2 Matter 124 | . . . . . . 124 Time 62 | . . . . . . 62 Total Part Build Rating 4 | . . . . . . 4 Parts Repaired . | . . . . . . . Time . | . . . . . . . Parts Recycled . | . . . . . . . Recycled Matter 29 | . . . . . . 29 Retrieved Matter . | . . . . . . . Retrieved Components . | . . . . . . . Parts Scanalyzed 2 | . . . . . 2 . Part Schematics Acquired 2 | . . . . . 2 . Parts Damaged . | . . . . . . . Bothacking | -11 -10 -10 -10 -9 -8 -7 ------------ Run | Scr Mat Min Exi Min Mat Fac Used RIF Installer . | . . . . . . . Robots Hacked . | . . . . . . . Non-combat . | . . . . . . . Combat . | . . . . . . . Robot Hacks Applied . | . . . . . . . Relay Couplers Released . | . . . . . . . Robots Rewired . | . . . . . . . Allies Hacked . | . . . . . . . Hacks Repelled . | . . . . . . . Allies | -11 -10 -10 -10 -9 -8 -7 -------- Run | Scr Mat Min Exi Min Mat Fac Total Allies 1 | . . . . 1 . . Largest Group 1 | . . . . 1 1 . Highest-Rated Group 31 | . . . . 31 31 . Highest-Rated Ally 31 | . . . . 31 31 . Total Orders . | . . . . . . . Ally Attacks 13 | . . . . 2 11 . Total Damage 168 | . . . . 22 146 . Kills 1 | . . . . 1 . . Allies Corrupted . | . . . . . . . Allies Melted . | . . . . . . . Intel | -11 -10 -10 -10 -9 -8 -7 ------- Run | Scr Mat Min Exi Min Mat Fac Robot Analysis Total . | . . . . . . . Derelict Logs Recovered 1 | . . 1 . . . . Drone Launches . | . . . . . . . Drone Recoveries . | . . . . . . . Exploration | -11 -10 -10 -10 -9 -8 -7 ------------- Run | Scr Mat Min Exi Min Mat Fac Turns Passed 4773 | 44 248 931 963 153 1713 721 Spaces Moved 3228 | 26 167 718 793 122 910 492 Core 276 | 6 . . . . 20 250 Treads 291 | . . . . . 263 28 Legs 2661 | 20 167 718 793 122 627 214 Wheels . | . . . . . . . Hover . | . . . . . . . Flight . | . . . . . . . Fastest Speed 50 | 50 120 120 120 120 120 50 Average Speed 126 | 117 120 120 120 120 149 111 Slowest Speed 450 | 150 120 120 120 120 300 450 Overloaded Moves . | . . . . . . . Propulsion Burnouts . | . . . . . . . Robots Hopped . | . . . . . . . Cave-ins Triggered . | . . . . . . . Time Travels 1 | . . . 1 . . . Exploration Rate (%) 49 | 3 24 99 94 37 68 19 Regions Visited 6 Branch Regions 3 Pre-discovered Areas 3 | . . 2 1 . . . Known Exits Taken 6 | 1 1 1 1 1 1 . Unknown Exits Taken . | . . . . . . . Scrap Searched . | . . . . . . . Spaces Dug . | . . . . . . . Terrain Destroyed 59 | . . . . . 59 . Melee . | . . . . . . . Projectile . | . . . . . . . AOE 59 | . . . . . 59 . Terrain Rammed . | . . . . . . . Walls Destroyed . | . . . . . . . Machines Disabled . | . . . . . . . Actions | -11 -10 -10 -10 -9 -8 -7 --------- Run | Scr Mat Min Exi Min Mat Fac Total 3731 | 39 189 785 806 128 1171 613 Wait 258 | . 7 67 . 1 130 53 Move 3222 | 25 166 717 792 121 909 492 Hop . | . . . . . . . Pick Up 37 | 7 1 . 6 3 14 6 Fast Attach 14 | . . . . . 12 2 Attach 34 | 7 1 . 4 1 12 9 Detach . | . . . . . . . Swap 1 | . . . . . . 1 Drop 21 | . . . 4 1 13 3 Fire 112 | . 14 1 . 1 81 15 Melee 9 | . . . . . . 9 Ram 4 | . . . . . . 4 Kick 17 | . . . . . . 17 Crush 2 | . . . . . . 2 Escape Stasis . | . . . . . . . Rewire . | . . . . . . . Trap . | . . . . . . . Miscellaneous . | . . . . . . . Route ------- -11/Scrapyard -10/Materials (discovered 2 exits: *Mat / *Min) -10/Mines (discovered 3 exits: *Mat x2 / *Exi) -10/Exiles (discovered 2 exits: *Min x2) -9/Mines -8/Materials (discovered 2 exits: *Fac x2) -7/Factory History --------- Turn | Location | Event 17 | -11/Scrapyard | Identified exit to Materials 17 | -11/Scrapyard | Discovered exit to Materials (range 15) 45 | -11/Scrapyard | Entered Materials 45 | -10/Materials | Evolved 1 slot: Utility x1 142 | -10/Materials | Identified exit to Materials 142 | -10/Materials | Discovered exit to Materials (range 14) 169 | -10/Materials | Identified exit to Mines 169 | -10/Materials | Discovered exit to Mines (range 9) 293 | -10/Materials | Entered Mines 308 | -10/Mines | Build established: Hacker-Mutant 346 | -10/Mines | Found a hidden stash of uninstalled traps 389 | -10/Mines | YI-UF0 nonchalantly dropped a Grenade Launcher on the ground 407 | -10/Mines | Learned location of Zion (-7) 475 | -10/Mines | Discovered exit to Materials (range 12) 529 | -10/Mines | Deemed a non-threat by the Exiles lab entrance 529 | -10/Mines | Identified exit to Exiles 529 | -10/Mines | Discovered exit to Exiles (range 5) 672 | -10/Mines | Learned location of Storage (-9) 784 | -10/Mines | Discovered exit to Materials (range 12) 1224 | -10/Mines | Entered Exiles 1252 | -10/Exiles | Identified exit to Mines 1252 | -10/Exiles | Discovered exit to Mines (range 14) 1284 | -10/Exiles | Met 8R-AWN 1302 | -10/Exiles | Met EX-HEX 1371 | -10/Exiles | Met EX-BIN 1388 | -10/Exiles | Aligned with FarCom system 1389 | -10/Exiles | Given EX-Vault access code 1443 | -10/Exiles | Opened EX-Vault 1448 | -10/Exiles | Found Prototype Energy Cannon 1449 | -10/Exiles | Identified Gui. Plasma Cannon 1451 | -10/Exiles | Found Prototype Processor 1453 | -10/Exiles | Identified 0b10 Alert Chip 1457 | -10/Exiles | Found Prototype Device 1459 | -10/Exiles | Identified Chronowheel 1459 | -10/Exiles | Activated Chronowheel 1459 | -10/Exiles | Spacetime reconverged on an earlier point 1508 | -10/Exiles | Warned to stay clear of 0b10 Research branches 1545 | -10/Exiles | Met EX-DEC 1722 | -10/Exiles | Discovered exit to Mines (range 14) 1822 | -10/Exiles | Visited The Gauntlet 2187 | -10/Exiles | Stole two prototypes: Gui. Plasma Cannon, 0b10 Alert Chip 2187 | -10/Exiles | Entered Mines 2214 | -9/Mines | Met a Derelict bent on vengeance 2248 | -9/Mines | Received a Mining Laser from a helpful Derelict 2274 | -9/Mines | Joined a pair of Derelicts in attacking an 0b10 outpost 2298 | -9/Mines | Assembled infested the area 2331 | -9/Mines | Identified exit to Materials 2331 | -9/Mines | Discovered exit to Materials (range 9) 2340 | -9/Mines | Entered Materials 2340 | -8/Materials | Accompanied by 1 ally 2340 | -8/Materials | Evolved 4 slots: Power x1, Utility x3 2545 | -8/Materials | Identified exit to Factory 2545 | -8/Materials | Discovered exit to Factory (range 4) 3455 | -8/Materials | Lost 6 parts (2p1n1u2w) 3913 | -8/Materials | Discovered exit to Factory (range 4) 4053 | -8/Materials | Entered Factory 4053 | -7/Factory | Evolved 2 slots: Utility x2 4055 | -7/Factory | FarCom data flow suspended 4181 | -7/Factory | Fabricated Disposable Heat Sink (x2) 4432 | -7/Factory | Lost 8 parts (1p2n2u3w) 4614 | -7/Factory | Core integrity fell below 50% 4644 | -7/Factory | Lost 7 parts (1p1n3u2w) 4703 | -7/Factory | Core integrity fell below 20% 4774 | -7/Factory | Destroyed by P-60 Hacker with Shock Rifle Last Messages --------------- 04588_ Broken Rnf. Deuterium Engine destroyed. 04607_ Chain reaction triggered in Lgt. Nuclear Core. 04607_ G-47 Trooper destroyed. 04613_ Power Conduit explodes. 04613_ Disposable Heat Sink destroyed. 04613_ Chainsword destroyed. 04613_ Structural Scanner destroyed. 04613_ Power Conduit explodes. 04614_ K-01 Serf collects debris. 04616_ DZJV/S|X>3ZT7,X AH=CQ 04664_ Acquired Kinecellerator. 04690_ Subcomponent Replicator disabled. 04700_ Slammed into G-50 Soldier. 04702_ Destabilizing: Core damaged (-35). 04703_ Slammed into G-50 Soldier. 04725_ Acquired Adv. Treads. 04734_ Door malfunctions. 04747_ Acquired Imp. EM Pulse Cannon. 04767_ Slammed into P-60 Hacker. [Achievement: Just Browsing] Map ----- +----------------------------------------------------+ | ?????????????????????????????????????????????????? | | ?????????????????????????????????????????????????? | | ?????????????????????????????????????????????????? | | ?????????????????????????????????????????????????? | | ?????????????????????????????????????????????????? | | ?????????????????????????????????????????????????? | | ?????????????????????????????????????????????????? | | ?????????????????????????????????????????????????? | | ?????????????????????????????????????????????????? | | ?????????????????????????????????????????????????? | | ?????????????????????????????????????????????????? | | ?????????????????????????????????????????????????? | | ?????????????????????????????????????????????????? | | ?????????????????????????????????????????????????? | | ?????????????????????????????????????????????????? | | ?????????????????????????????????????????????????? | | ?????????????????????????????????????????????????? | | ?????????????????????????????????????????????????? | | ?????????????????????????????????????????????????? | | ?????????????????????????????????????????????????? | | ?????????????????????????????????????????????????? | | ?????????????????????????????????????????????????? | | ?????????????????????????????????????????????????? | | ????????????????#################????????????????? | | ????????????????# p #????????????????? | | ????????????????# @ g g #????????????????? | | ????????????????# """"""""" g #????????????????? | | ?????????????????? """"""""" #????????????????? | | ????????????????# """""""""Y #????????????????? | | ????????????????# """""""""lt #????????????????? | | ????????????????# """"""""" #????????????????? | | ????????????????# """"""""" #????????????????? | | ????????????????# #????????????????? | | ????????????????# #????????????????? | | ????????????????########/########????????????????? | | ???????############### #?????????????????????? | | ???????# # #?????????????????????? | | ???????#""" # #?????????????????????? | | ???????#"R # #?????????????????????? | | ????????""" + #?????????????????????? | | ???????# "" # #?????????????????????? | | ???????# """ """ # #?????????????????????? | | ???????# """ """ # #?????????????????????? | | ???????# """ """ # #?????????????????????? | | ???????????? "" "" # +?????????????????????? | | ??????????? "" "" + #?????????????????????? | | ?????????? # #?????????????????????? | | ??????????############ #?????????????????????? | | ?????????????????????# ###+#######???????????? | | ???????????????""????# ???????????? | +----------------------------------------------------+ Best States ------------- Heat Dissipation 48 Coolant Potential 50 Energy Generation 25 Energy Capacity 455 Matter Stores 300 Matter Capacity 300 Sight Range 18 Terrain Scan Density 10 ECM Strength 1 Armor Coverage 225 Resistance: KI 35 Resistance: TH 35 Resistance: EX 35 Resistance: EM 35 Resistance: I 35 Resistance: S 35 Resistance: P 35 Core Shielding 20 Evasion (%) 50 Targeting Accuracy 8 Armor Integrity Analysis 33 Recoil Reduction 1 Particle Charging 15 Offensive Hacking 20 Item Schematics ----------------- Disposable Heat Sink | -8/Materials | Scanalyzed Carbon-fiber Leg | -8/Materials | Scanalyzed Robot Schematics ------------------ None Fabricated ------------ Disposable Heat Sink | x2 | -7/Factory Alien Tech Used ----------------- None Achievements -------------- Just Browsing Just What I Needed Challenges ------------ None Game ------ Seed SupersonicChainWeb Manual? 0 Play Time 01:00:31 Cumulative 19.6 hours Start 2020.09.16 @ 10:50:58 End 2020.09.16 @ 12:04:03 Sessions 3 Manual Loads 0 Difficulty Explorer Special Mode None Game No. 29 Rogue 22 Adventurer 0 Explorer 7 Win Type - Total 0 Types 0/0/0/0/0/0/0/0/0 Lore% 11 Gallery% 25 Achievement% 14 Wizard Run 0 Options --------- ASCII 0 Keyboard 0 Movement Mouse Keybinds 0 Fullscreen 2 Font 18/SmallcapsGlow Map View 76x50 Tactical HUD 1 Map Filters NONE Filters NONE Steam 1 RUN: 4cb74023-8aa0-4879-88ca-d0979fab27c9